bitfinex-derivatives/quotes_BTCF0:USTF0_20251216
["timestamp","ask_amount","ask_price","bid_price","bid_amount"]
[1765855325292,0.6536936,85755.0,85754.0,0.34166]
[1765855325690,1.0144936,85755.0,85754.0,0.34166]
[1765855325989,0.6536947,85747.0,85746.0,0.66820494]
[1765855327987,0.0116647,85747.0,85746.0,0.66820494]
[1765855328897,0.0116647,85747.0,85746.0,0.72989494]
[1765855329483,0.0116647,85747.0,85746.0,0.74155984]
[1765855330195,0.0116647,85747.0,85746.0,0.72989494]
[1765855330794,0.0116647,85747.0,85746.0,0.66820494]
[1765855330996,0.7333098,85756.0,85755.0,0.66803]
[1765855331180,0.6536935,85756.0,85755.0,0.66803]
[1765855332588,0.0116635,85756.0,85755.0,0.66803]
[1765855333001,0.6536935,85756.0,85755.0,0.66803]
[1765855333779,0.6546935,85756.0,85755.0,0.66803]
[1765855334193,0.6536935,85756.0,85755.0,0.66803]
[1765855334391,0.6546935,85756.0,85755.0,0.66803]
[1765855335298,0.6536935,85756.0,85755.0,0.66803]
[1765855335496,0.6546935,85756.0,85755.0,0.66803]
[1765855337993,0.0126635,85756.0,85755.0,0.66803]
[1765855339497,0.3394235,85756.0,85755.0,0.66803]
[1765855339896,0.0126635,85756.0,85755.0,0.66803]
[1765855340592,0.0116635,85756.0,85755.0,0.66803]
[1765855347795,0.0116635,85756.0,85754.0,0.3608]
[1765855347796,0.0116628,85762.0,85761.0,0.0116628]
[1765855348007,0.0116618,85769.0,85768.0,0.66803]
[1765855348298,0.6536918,85769.0,85768.0,0.66803]
[1765855348503,0.5626918,85769.0,85768.0,0.66803]
[1765855348804,0.5743536,85769.0,85768.0,0.66803]
[1765855350106,0.5753536,85769.0,85768.0,0.66803]
[1765855350601,0.5743536,85769.0,85768.0,0.66803]
[1765855350905,0.5753536,85769.0,85768.0,0.66803]
[1765855353702,0.5743536,85769.0,85768.0,0.66803]
[1765855353902,0.5753536,85769.0,85768.0,0.66803]
[1765855357509,0.5743536,85769.0,85768.0,0.66803]
[1765855357717,0.5753536,85769.0,85768.0,0.66803]
[1765855364813,0.5753536,85769.0,85768.0,1.39747]
[1765855377822,0.6813131,85759.0,85758.0,0.31511]
[1765855378036,0.6813147,85747.0,85746.0,0.73488488]
[1765855378323,0.6813147,85747.0,85746.0,1.35956494]
[1765855380916,0.6813147,85747.0,85746.0,0.00017494]
[1765855381225,0.6813147,85747.0,85746.0,4e-08]
[1765855381726,0.6813158,85739.0,85738.0,4e-08]
[1765855381922,1.0421158,85739.0,85738.0,4e-08]
[1765855382817,1.0451158,85739.0,85738.0,0.64523004]
[1765855383018,0.6843158,85739.0,85738.0,0.64523004]
[1765855383317,0.0146658,85739.0,85738.0,0.64523004]
[1765855384324,0.3414958,85739.0,85738.0,0.64523004]
[1765855384622,0.6726158,85739.0,85738.0,0.64523004]
[1765855395430,0.0146658,85739.0,85738.0,4e-08]
[1765855396726,0.6696169,85731.0,85730.0,0.00017494]
[1765855396926,1.0304169,85731.0,85730.0,0.00017494]
[1765855397826,1.0314169,85731.0,85730.0,0.00017494]
[1765855398524,1.0324169,85731.0,85730.0,0.00017494]
[1765855403535,0.6696189,85716.0,85715.0,0.67605]
[1765855403837,0.6696189,85716.0,85715.0,0.3608]
[1765855404232,0.6696189,85716.0,85715.0,1.01799295]
[1765855404623,0.6696189,85716.0,85715.0,1.00703]
[1765855406127,0.6696189,85716.0,85715.0,1.00803]
[1765855409341,0.36097494,85724.0,85723.0,0.64523]
[1765855409342,0.01184284,85724.0,85723.0,0.64523]
[1765855409643,0.01184284,85724.0,85723.0,1.00603]
[1765855410336,0.33867284,85724.0,85723.0,1.00603]
[1765855410939,0.01184284,85724.0,85723.0,1.00603]
[1765855412835,0.00017494,85724.0,85723.0,1.40603]
[1765855413036,0.7916601,85733.0,85732.0,0.61691]
[1765855413243,0.61192,85733.0,85732.0,0.61691]
[1765855413441,0.6235866,85733.0,85732.0,0.61691]
[1765855414336,0.6245866,85733.0,85732.0,0.61691]
[1765855415233,0.6255866,85733.0,85732.0,0.61691]
[1765855439258,0.0136666,85733.0,85732.0,0.61691]
[1765855439648,0.3080566,85733.0,85732.0,0.61691]
[1765855440258,0.6255866,85733.0,85732.0,0.61691]
[1765855440857,0.002,85733.0,85732.0,0.76271]
[1765855441057,0.0116643,85751.0,85750.0,0.61691]
[1765855441355,0.3060543,85751.0,85750.0,1.34655]
[1765855441554,0.0116643,85751.0,85750.0,1.85315]
[1765855441950,0.7916601,85760.0,85759.0,0.61691]
[1765855442156,0.61192,85760.0,85759.0,0.97771]
[1765855442357,0.78329,85760.0,85759.0,0.98935158]
[1765855443062,0.794953,85760.0,85759.0,0.98935158]
[1765855446059,0.623583,85760.0,85759.0,0.98935158]
[1765855446260,0.011663,85760.0,85759.0,0.98935158]
[1765855446464,0.300563,85760.0,85759.0,0.98935158]
[1765855447054,0.592183,85760.0,85759.0,0.98935158]
[1765855447955,0.763553,85760.0,85759.0,0.98935158]
[1765855448868,0.763553,85760.0,85759.0,0.97771]
[1765855449351,0.763553,85760.0,85759.0,0.98960113]
[1765855450263,0.763553,85760.0,85759.0,0.97771]
[1765855450465,0.763553,85760.0,85759.0,1.70723]
[1765855451265,0.763553,85760.0,85759.0,1.71912698]
[1765855451768,0.764553,85760.0,85759.0,1.71912698]
[1765855453168,0.763553,85760.0,85759.0,1.71912698]
[1765855455268,0.763553,85760.0,85759.0,1.70723]
[1765855456568,0.763553,85760.0,85759.0,1.719045]
[1765855456864,0.763553,85760.0,85759.0,1.70723]
[1765855459876,0.763553,85760.0,85759.0,0.97771]
[1765855460170,0.763553,85760.0,85759.0,1.70715]
[1765855461362,0.763553,85760.0,85759.0,1.34635]
[1765855464370,0.5921853,85743.0,85740.0,0.3608]
[1765855464573,0.5921853,85743.0,85737.0,0.72944]
[1765855464771,0.5921853,85743.0,85738.0,0.01156718]
[1765855465864,0.5921853,85743.0,85737.0,0.72944]
[1765855466065,0.5921853,85743.0,85733.0,0.011979]
[1765855466268,0.5921853,85743.0,85733.0,0.741419]
[1765855467468,0.5921853,85743.0,85733.0,0.92101253]
[1765855467674,0.5921853,85743.0,85737.0,0.3608]
[1765855478773,0.3005653,85743.0,85742.0,0.01293494]
[1765855478972,0.0116653,85743.0,85742.0,0.01293494]
[1765855479185,0.6597453,85743.0,85742.0,0.01293494]
[1765855480275,0.6597453,85743.0,85742.0,0.01393494]
[1765855481077,0.6597453,85743.0,85742.0,0.01293494]
[1765855481488,0.6597453,85743.0,85742.0,0.01393494]
[1765855482186,0.6597453,85743.0,85742.0,0.00017494]
[1765855482783,0.6597453,85743.0,85742.0,4.94e-06]
[1765855482981,0.64808,85726.0,85725.0,1.01792]
[1765855483179,0.6597476,85726.0,85725.0,1.29373342]
[1765855483979,0.31281,85726.0,85725.0,1.29373342]
[1765855484272,0.6597473,85729.0,85728.0,0.65712]
[1765855485683,0.6597473,85729.0,85728.0,0.66012]
[1765855486073,0.6597473,85729.0,85728.0,0.003]
[1765855486485,0.6597473,85729.0,85728.0,0.32915]
[1765855486787,0.6597473,85729.0,85728.0,0.66012]
[1765855487089,0.6597473,85729.0,85728.0,0.65912]
[1765855487274,0.6597473,85729.0,85728.0,0.66012]
[1765855487987,0.6597473,85729.0,85728.0,0.65812]
[1765855488189,0.6597473,85729.0,85728.0,0.66012]
[1765855491496,0.3244773,85729.0,85728.0,0.66012]
[1765855492783,0.0116673,85729.0,85728.0,0.66012]
[1765855493188,0.3244773,85729.0,85728.0,0.66012]
[1765855494988,0.6597473,85729.0,85728.0,0.66012]
[1765855499005,0.6597473,85729.0,85728.0,0.32915]
[1765855499396,0.6597473,85729.0,85728.0,0.66012]
[1765855503812,0.6597473,85729.0,85728.0,1.38968]
[1765855507815,0.0116673,85729.0,85728.0,1.38968]
[1765855509613,0.6980965,85734.0,85733.0,0.69199]
[1765855510214,0.6980972,85729.0,85728.0,1e-07]
[1765855510420,1.0588972,85729.0,85728.0,1e-07]
[1765855510721,0.6960987,85718.0,85717.0,0.69216494]
[1765855511017,1.0568987,85718.0,85717.0,0.69216494]
[1765855511415,0.3724687,85718.0,85717.0,0.69216494]
[1765855511815,1.0588987,85718.0,85717.0,0.69216494]
[1765855512008,1.0588987,85718.0,85717.0,1.42272494]
[1765855513316,1.0588987,85718.0,85717.0,1.42372494]
[1765855515919,0.6980987,85718.0,85717.0,1.42372494]
[1765855534126,0.6980987,85718.0,85717.0,0.00217494]
[1765855534431,1.4196987,85718.0,85717.0,4e-08]
[1765855534626,1.44928134,85718.0,85717.0,4e-08]
[1765855534821,0.6856907,85703.0,85702.0,0.66873382]
[1765855535129,1.0464907,85703.0,85702.0,0.66873382]
[1765855536126,1.0464907,85703.0,85702.0,0.67073382]
[1765855536328,1.0464907,85703.0,85702.0,0.33579382]
[1765855536727,1.0464907,85703.0,85702.0,0.67073382]
[1765855537025,1.0464907,85703.0,85702.0,0.67273382]
[1765855538231,1.0464907,85703.0,85702.0,0.00410382]
[1765855538545,1.0464907,85703.0,85681.0,0.66863]
[1765855538546,0.6856936,85682.0,85681.0,0.66863]
[1765855538827,0.6856936,85682.0,85670.0,0.14660792]
[1765855538828,0.67402,85659.0,85658.0,0.00233488]
[1765855539030,0.67402,85659.0,85658.0,0.68286264]
[1765855539226,0.3608,85700.0,85699.0,0.29228]
[1765855539429,0.67402,85709.0,85699.0,0.73008]
[1765855539729,8.18e-05,85700.0,85699.0,1.20214735]
[1765855539922,8.18e-05,85700.0,85699.0,1.02236]
[1765855540122,0.00017504,85708.0,85699.0,1.02236]
[1765855540123,0.67419504,85708.0,85707.0,0.29228]
[1765855540329,0.67419504,85708.0,85707.0,0.65308]
[1765855540628,0.67419504,85708.0,85707.0,0.74491846]
[1765855541131,0.00017504,85708.0,85707.0,0.74491846]
[1765855541526,0.67419504,85708.0,85707.0,0.74491846]
[1765855542532,0.68586504,85708.0,85707.0,0.74491846]
[1765855542727,0.68686504,85708.0,85707.0,0.74491846]
[1765855543632,0.58686504,85708.0,85707.0,0.74491846]
[1765855544336,0.58786504,85708.0,85707.0,0.74491846]
[1765855545130,0.58686504,85708.0,85707.0,0.74491846]
[1765855545338,0.58786504,85708.0,85707.0,0.74491846]
[1765855545730,0.58686504,85708.0,85707.0,0.74491846]
[1765855545925,0.58786504,85708.0,85707.0,0.74491846]
[1765855546432,0.58786504,85708.0,85707.0,0.59877846]
[1765855546737,0.685691,85701.0,85700.0,1.07656]
[1765855546931,0.685691,85701.0,85700.0,0.49192]
[1765855548929,0.687691,85701.0,85700.0,0.49192]
[1765855549834,0.687691,85701.0,85700.0,0.24596]
[1765855549835,0.686691,85701.0,85700.0,0.24596]
[1765855550041,0.688691,85701.0,85700.0,0.24596]
[1765855551238,0.8861718,85695.0,85694.0,0.85272]
[1765855551435,0.8861718,85695.0,85694.0,0.3608]
[1765855552443,0.8861718,85695.0,85694.0,0.60676]
[1765855552643,0.8881718,85695.0,85694.0,0.3608]
[1765855553143,0.67402,85692.0,85691.0,0.24613504]
[1765855553936,0.67402,85692.0,85691.0,0.00017504]
[1765855554237,0.6856922,85692.0,85691.0,0.00017504]
[1765855554844,0.6886922,85692.0,85691.0,0.00017504]
[1765855555335,0.6856922,85692.0,85691.0,0.00017504]
[1765855555536,0.6886922,85692.0,85691.0,0.00017504]
[1765855555941,0.8861739,85680.0,85679.0,0.3608]
[1765855556338,0.8861739,85680.0,85679.0,0.60694]
[1765855556644,0.8861739,85680.0,85679.0,0.3608]
[1765855557643,0.8871739,85680.0,85679.0,0.3608]
[1765855558140,0.6856949,85672.0,85671.0,0.00028165]
[1765855561445,0.6856949,85672.0,85671.0,1.65e-06]
[1765855561446,1.0464949,85672.0,85671.0,1.65e-06]
[1765855561749,1.4170949,85672.0,85671.0,0.49284165]
[1765855562042,0.6856949,85672.0,85671.0,0.49284165]
[1765855562248,0.68580573,85672.0,85671.0,0.49284165]
[1765855562450,0.01178573,85672.0,85671.0,1.65e-06]
[1765855562653,0.01278573,85672.0,85671.0,1.65e-06]
[1765855562947,0.35228573,85672.0,85671.0,0.49284165]
[1765855563150,0.35228573,85672.0,85671.0,0.85364165]
[1765855563645,0.69359573,85672.0,85671.0,0.85364165]
[1765855563847,0.69559573,85672.0,85671.0,0.85364165]
[1765855564647,0.69459573,85672.0,85671.0,0.85364165]
[1765855564843,0.69359573,85672.0,85671.0,0.85364165]
[1765855565050,0.59359573,85672.0,85671.0,0.85364165]
[1765855565656,0.59459573,85672.0,85671.0,0.85364165]
[1765855566247,0.60527063,85672.0,85671.0,0.85364165]
[1765855566449,0.60627063,85672.0,85671.0,0.85364165]
[1765855567555,0.50627063,85672.0,85671.0,0.85364165]
[1765855567754,0.0136749,85672.0,85671.0,0.85364165]
[1765855568049,0.002,85672.0,85671.0,0.85364165]
[1765855568642,0.001,85672.0,85671.0,0.85364165]
[1765855568845,0.5369841,85686.0,85685.0,0.69749]
[1765855569151,0.5486571,85686.0,85685.0,1.05829]
[1765855569453,0.6924843,85677.0,85676.0,0.69749]
[1765855569748,0.893293,85686.0,85685.0,0.69749]
[1765855569949,0.011673,85686.0,85685.0,0.69749]
[1765855570150,0.352173,85686.0,85685.0,0.69749]
[1765855570349,0.894293,85686.0,85685.0,0.69749]
[1765855570749,0.00017504,85688.0,85687.0,0.69749]
[1765855572552,0.00117504,85688.0,85687.0,0.69749]
[1765855572955,0.00217504,85688.0,85687.0,0.69749]
[1765855573345,0.00117504,85688.0,85687.0,0.69749]
[1765855573652,0.79546764,85698.0,85697.0,0.69749]
[1765855573854,0.80713904,85698.0,85697.0,0.69749]
[1765855574856,0.80913904,85698.0,85697.0,0.69749]
[1765855575952,0.81113904,85698.0,85697.0,0.69749]
[1765855585971,0.6964814,85698.0,85697.0,0.69749]
[1765855591369,0.6964814,85698.0,85697.0,0.33903]
[1765855591575,0.6964814,85698.0,85694.0,0.3608]
[1765855591576,0.8932918,85695.0,85694.0,0.3608]
[1765855592283,0.9157025,85690.0,85689.0,0.00017504]
[1765855593678,0.9167025,85690.0,85689.0,0.00017504]
[1765855594381,0.9167025,85690.0,85689.0,0.68014504]
[1765855594382,0.9177025,85690.0,85689.0,0.68014504]
[1765855594588,0.9187025,85690.0,85689.0,0.33973504]
[1765855594782,0.9187025,85690.0,85689.0,0.68014504]
[1765855594982,0.9177025,85690.0,85689.0,1.04094504]
[1765855595184,0.9197025,85690.0,85689.0,1.04094504]
[1765855595688,0.9177025,85690.0,85689.0,1.04094504]
[1765855595890,0.9197025,85690.0,85689.0,1.04094504]
[1765855596187,0.004,85690.0,85689.0,1.04094504]
[1765855596585,0.003,85690.0,85689.0,1.04094504]
[1765855597182,0.002,85690.0,85689.0,1.04094504]
[1765855598083,0.89814,85704.0,85703.0,0.67997]
[1765855598282,0.2602206,85704.0,85703.0,0.67997]
[1765855599087,0.8247506,85704.0,85703.0,0.67997]
[1765855599392,0.8277506,85704.0,85703.0,0.67997]
[1765855599792,0.69733,85702.0,85701.0,0.3608]
[1765855600092,0.69733,85702.0,85701.0,0.70036]
[1765855600284,0.69733,85702.0,85701.0,0.3608]
[1765855600994,0.70033,85702.0,85701.0,0.3608]
[1765855601382,0.70033,85702.0,85701.0,0.70036]
[1765855601883,0.70233,85702.0,85701.0,0.70036]
[1765855602282,0.70233,85702.0,85701.0,1.04077]
[1765855602886,0.70223,85702.0,85701.0,1.04077]
[1765855604185,0.7090024,85691.0,85690.0,0.67997]
[1765855605396,0.7100024,85691.0,85690.0,0.67997]
[1765855605891,0.69733,85690.0,85689.0,0.00017504]
[1765855607103,0.924753,85686.0,85685.0,0.3608]
[1765855608403,0.926753,85686.0,85685.0,0.3608]
[1765855608896,0.928753,85686.0,85685.0,0.3608]
[1765855610892,0.928753,85686.0,85685.0,1.04077]
[1765855611295,0.926753,85686.0,85685.0,1.04077]
[1765855611599,0.928753,85686.0,85685.0,1.04077]
[1765855611903,0.926753,85686.0,85685.0,1.04077]
[1765855612194,0.927753,85686.0,85685.0,1.04077]
[1765855613396,0.925753,85686.0,85685.0,1.04077]
[1765855613598,0.926753,85686.0,85685.0,1.04077]
[1765855614298,0.925753,85686.0,85685.0,1.04077]
[1765855614600,0.926753,85686.0,85685.0,1.04077]
[1765855615088,0.925753,85686.0,85685.0,1.04077]
[1765855615288,0.711003,85686.0,85685.0,1.04077]
[1765855615899,0.710003,85686.0,85685.0,1.04077]
[1765855616095,0.711003,85686.0,85685.0,1.04077]
[1765855617398,0.926753,85686.0,85685.0,1.04077]
[1765855617600,0.925753,85686.0,85685.0,1.04077]
[1765855617798,0.926753,85686.0,85685.0,1.04077]
[1765855618997,0.925753,85686.0,85685.0,1.04077]
[1765855619193,0.926753,85686.0,85685.0,1.04077]
[1765855620399,0.361223,85686.0,85685.0,1.04077]
[1765855620602,0.711003,85686.0,85685.0,1.04077]
[1765855620900,0.712003,85686.0,85685.0,1.04077]
[1765855621097,0.711003,85686.0,85685.0,1.04077]
[1765855621602,0.710003,85686.0,85685.0,1.04077]
[1765855622597,0.711003,85686.0,85685.0,1.04077]
[1765855623100,0.710003,85686.0,85685.0,1.04077]
[1765855623299,0.711003,85686.0,85685.0,1.04077]
[1765855623499,0.711003,85686.0,85685.0,0.3608]
[1765855624209,0.711003,85686.0,85677.0,0.00017504]
[1765855624210,0.6953241,85678.0,85677.0,0.00017504]
[1765855624399,0.9059955,85668.0,85667.0,1.03735]
[1765855627704,0.6953255,85668.0,85667.0,1.03735]
[1765855628008,0.00017504,85676.0,85667.0,1.03735]
[1765855628009,0.69549944,85676.0,85675.0,0.67655]
[1765855628607,0.00017504,85676.0,85675.0,0.67655]
[1765855629011,0.3539322,85692.0,85691.0,0.67655]
[1765855629305,0.0116718,85696.0,85695.0,0.67655]
[1765855630595,0.0126718,85696.0,85695.0,0.67655]
[1765855630795,0.6963218,85696.0,85695.0,0.67655]
[1765855631099,0.6943218,85696.0,85695.0,0.67655]
[1765855631496,0.68465,85696.0,85695.0,0.67655]
[1765855631700,0.68365,85688.0,85687.0,0.67672504]
[1765855632512,0.6953228,85688.0,85687.0,0.00017504]
[1765855633113,0.9059928,85688.0,85687.0,0.00017504]
[1765855634599,0.9079928,85688.0,85687.0,0.00017504]
[1765855635200,0.9099928,85688.0,85687.0,0.00017504]
[1765855641412,0.9099928,85688.0,85687.0,0.67672504]
[1765855644015,0.9089928,85688.0,85687.0,0.67672504]
[1765855645214,0.9069928,85688.0,85687.0,0.67672504]
[1765855645514,0.9089928,85688.0,85687.0,0.67672504]
[1765855646215,0.9099928,85688.0,85687.0,0.67672504]
[1765855646916,0.9079928,85688.0,85687.0,0.67672504]
[1765855647107,0.9099928,85688.0,85687.0,0.67672504]
[1765855647305,0.9079928,85688.0,85687.0,0.67672504]
[1765855647507,0.9099928,85688.0,85687.0,0.67672504]
[1765855647707,0.9099928,85688.0,85687.0,0.34429504]
[1765855648210,0.9099928,85688.0,85687.0,0.67672504]
[1765855649017,0.9079928,85688.0,85687.0,0.67672504]
[1765855649212,0.9099928,85688.0,85687.0,0.67672504]
[1765855650720,0.9079928,85688.0,85687.0,0.67672504]
[1765855650924,0.6993228,85688.0,85687.0,0.67672504]
[1765855651219,0.0156728,85688.0,85687.0,0.67672504]
[1765855651512,0.0156728,85688.0,85687.0,1.03752504]
[1765855652615,0.0126728,85688.0,85687.0,1.03752504]
[1765855652809,0.0146728,85688.0,85687.0,1.03752504]
[1765855653411,0.0126728,85688.0,85687.0,1.03752504]
[1765855653927,0.0116728,85688.0,85687.0,1.03752504]
[1765855655005,0.60166,85698.0,85697.0,0.69651]
[1765855655208,0.2539314,85698.0,85697.0,1.05731]
[1765855655405,0.0116714,85698.0,85697.0,1.05731]
[1765855655925,0.7096314,85698.0,85697.0,1.05731]
[1765855656428,0.0116714,85698.0,85697.0,1.05731]
[1765855656610,0.0136714,85698.0,85697.0,1.05731]
[1765855657222,0.0156714,85698.0,85697.0,1.05731]
[1765855658219,0.7136314,85698.0,85697.0,1.05731]
[1765855658614,0.0156714,85698.0,85697.0,1.05731]
[1765855660423,0.7136314,85698.0,85697.0,1.05731]
[1765855662625,0.9118814,85698.0,85697.0,1.05731]
[1765855663214,0.7136314,85698.0,85697.0,1.05731]
[1765855665919,0.9118814,85698.0,85697.0,1.05731]
[1765855666427,0.9118814,85698.0,85680.0,0.37446469]
[1765855666428,0.7096321,85693.0,85692.0,1.42671]
[1765855666628,0.7096328,85688.0,85687.0,0.00017504]
[1765855667428,1.0704328,85688.0,85687.0,0.00017504]
[1765855668028,0.7096352,85670.0,85669.0,1.16455]
[1765855669123,0.7096352,85670.0,85669.0,1.05659]
[1765855669531,0.7096352,85670.0,85669.0,0.3608]
[1765855669828,0.7096352,85670.0,85669.0,0.7042]
[1765855670633,0.7096352,85670.0,85669.0,1.05659]
[1765855678135,0.9078852,85670.0,85669.0,1.05659]
[1765855681926,0.7096363,85662.0,85661.0,0.69596504]
[1765855682829,0.3689563,85662.0,85661.0,0.69596504]
[1765855683029,0.9082063,85662.0,85661.0,0.00217504]
[1765855683328,0.9082063,85662.0,85661.0,0.00317504]
[1765855685724,0.9082063,85662.0,85661.0,0.35571504]
[1765855686134,0.9082063,85662.0,85661.0,0.71485504]
[1765855686428,0.9082063,85662.0,85661.0,0.00317504]
[1765855686826,0.9082063,85662.0,85661.0,0.00017504]
[1765855687026,0.9082063,85662.0,85661.0,0.00217504]
[1765855687934,0.9284063,85662.0,85661.0,0.00217504]
[1765855688423,0.9284063,85662.0,85661.0,0.35471504]
[1765855689030,0.9284063,85662.0,85661.0,0.00217504]
[1765855689333,0.9284063,85662.0,85661.0,0.35471504]
[1765855690732,0.9284063,85662.0,85661.0,0.00217504]
[1765855691120,0.69307,85642.0,85641.0,1.07248]
[1765855691326,0.704749,85642.0,85641.0,1.07248]
[1765855691526,0.704749,85642.0,85641.0,0.71334]
[1765855691727,0.704749,85642.0,85641.0,1.08427415]
[1765855692328,0.724949,85642.0,85641.0,0.3638]
[1765855692631,0.724949,85642.0,85641.0,0.3668]
[1765855693035,0.724949,85642.0,85641.0,0.3608]
[1765855693235,0.724949,85642.0,85641.0,0.3648]
[1765855693931,0.724949,85642.0,85641.0,1.07648]
[1765855695134,0.031879,85642.0,85641.0,1.07648]
[1765855696328,0.724949,85642.0,85641.0,1.07648]
[1765855701635,0.031879,85642.0,85641.0,1.07648]
[1765855702548,0.724949,85642.0,85641.0,1.07648]
[1765855707542,0.031879,85642.0,85641.0,1.07648]
[1765855707947,0.0316987,85642.0,85641.0,1.07648]
[1765855708147,0.0202,85642.0,85641.0,1.07648]
[1765855708356,0.69307,85659.0,85658.0,0.71168]
[1765855709850,0.69307,85652.0,85651.0,1.07248]
[1765855710050,0.7047477,85652.0,85651.0,1.07248]
[1765855710452,0.7047477,85652.0,85651.0,0.71168]
[1765855715953,0.66789,85651.0,85650.0,0.00017515]
[1765855717663,0.66789,85651.0,85650.0,0.00117515]
[1765855718263,0.66789,85651.0,85650.0,5e-08]
[1765855719661,0.70201108,85651.0,85650.0,5e-08]
[1765855720554,0.6795689,85643.0,85642.0,0.66402515]
[1765855721664,0.6805689,85643.0,85642.0,0.66402515]
[1765855723261,0.6815689,85643.0,85642.0,0.66402515]
[1765855724162,0.6805689,85643.0,85642.0,0.66402515]
[1765855724363,0.6815689,85643.0,85642.0,0.66402515]
[1765855728964,0.6805689,85643.0,85642.0,0.66402515]
[1765855729166,0.6815689,85643.0,85642.0,0.66402515]
[1765855729563,0.6815689,85643.0,85642.0,0.32589515]
[1765855729765,0.6805689,85643.0,85642.0,0.00017515]
[1765855729967,0.6815689,85643.0,85642.0,0.66402515]
[1765855731766,0.6815689,85643.0,85642.0,0.32589515]
[1765855731969,0.6815689,85643.0,85642.0,0.66402515]
[1765855732756,0.6825689,85643.0,85642.0,0.66402515]
[1765855733473,0.6805689,85643.0,85642.0,0.66402515]
[1765855733666,0.6825689,85643.0,85642.0,0.66402515]
[1765855733867,0.6815689,85643.0,85642.0,0.66402515]
[1765855734167,0.6835689,85643.0,85642.0,0.66402515]
[1765855735067,0.6795689,85643.0,85642.0,0.66402515]
[1765855735268,0.6835689,85643.0,85642.0,0.66402515]
[1765855736566,0.6815689,85643.0,85642.0,0.00017515]
[1765855736774,0.6835689,85643.0,85642.0,0.00017515]
[1765855737665,0.6815689,85643.0,85642.0,0.00017515]
[1765855737870,0.6845689,85643.0,85642.0,0.00017515]
[1765855738179,0.6825689,85643.0,85642.0,0.66402515]
[1765855738371,0.6845689,85643.0,85642.0,0.66402515]
[1765855738575,0.6845689,85643.0,85642.0,0.32589515]
[1765855738773,0.6845689,85643.0,85642.0,0.00017515]
[1765855738964,0.6825689,85643.0,85642.0,0.32589515]
[1765855739274,0.6845689,85643.0,85642.0,0.66402515]
[1765855739868,0.6835689,85643.0,85642.0,0.66402515]
[1765855740163,0.6805689,85643.0,85642.0,0.66402515]
[1765855740475,0.6825689,85643.0,85642.0,0.00017515]
[1765855742079,0.6825689,85643.0,85642.0,0.32589515]
[1765855742275,0.6825689,85643.0,85642.0,0.66576515]
[1765855747982,0.6815689,85643.0,85642.0,0.66576515]
[1765855748170,0.6825689,85643.0,85642.0,0.66576515]
[1765855748875,0.6815689,85643.0,85642.0,0.66576515]
[1765855749172,0.6805689,85643.0,85642.0,0.66576515]
[1765855749364,0.6825689,85643.0,85642.0,0.66576515]
[1765855749767,0.0126789,85643.0,85642.0,0.66576515]
[1765855749981,0.3601989,85643.0,85642.0,0.66576515]
[1765855750175,0.7120989,85643.0,85642.0,0.66576515]
[1765855751372,0.7110989,85643.0,85642.0,0.66576515]
[1765855751573,0.7120989,85643.0,85642.0,0.66576515]
[1765855751879,0.0126789,85643.0,85642.0,0.66576515]
[1765855752081,0.0136789,85643.0,85642.0,0.66576515]
[1765855753579,0.0126789,85643.0,85642.0,0.66576515]
[1765855753770,0.002,85643.0,85642.0,0.66576515]
[1765855754368,0.001,85643.0,85642.0,0.66576515]
[1765855754568,0.69842,85650.0,85649.0,1.03959]
[1765855755477,0.0116779,85650.0,85649.0,1.03959]
[1765855756181,0.0126779,85650.0,85649.0,1.03959]
[1765855756569,0.0126779,85650.0,85649.0,0.69972]
[1765855757075,0.7100966,85660.0,85659.0,0.69972]
[1765855757376,0.3635766,85660.0,85659.0,1.06052]
[1765855757575,0.0116766,85660.0,85659.0,1.06052]
[1765855758477,0.0126766,85660.0,85659.0,1.06052]
[1765855758672,0.0136766,85660.0,85659.0,1.06052]
[1765855759874,0.69842,85667.0,85666.0,0.69972]
[1765855760074,0.69342,85667.0,85666.0,0.69972]
[1765855760276,0.7050957,85667.0,85666.0,1.06052]
[1765855760695,0.69842,85675.0,85674.0,0.69972]
[1765855761979,0.69942,85675.0,85674.0,0.69972]
[1765855762182,0.69942,85675.0,85674.0,1.06052]
[1765855762381,0.69942,85675.0,85674.0,1.07231586]
[1765855762582,0.91223,85675.0,85674.0,0.69972]
[1765855763186,0.9229055,85668.0,85667.0,1.06052]
[1765855763499,0.9229055,85668.0,85667.0,1.80279898]
[1765855763791,0.9229055,85668.0,85667.0,1.79136]
[1765855763984,0.69842,85667.0,85666.0,0.00017515]
[1765855764185,0.69842,85667.0,85666.0,0.36002515]
[1765855764487,0.69842,85667.0,85666.0,0.69989515]
[1765855764784,0.0116755,85668.0,85667.0,0.69972]
[1765855765091,0.3581955,85668.0,85667.0,0.69972]
[1765855765590,0.7100955,85668.0,85667.0,0.69972]
[1765855769088,0.7100955,85668.0,85667.0,1.06052]
[1765855770389,0.3581955,85668.0,85667.0,1.06052]
[1765855770590,0.7100955,85668.0,85667.0,1.06052]
[1765855770798,0.0116755,85668.0,85667.0,1.06052]
[1765855771297,0.69842,85677.0,85676.0,0.69972]
[1765855771992,0.7100943,85677.0,85676.0,0.69972]
[1765855772397,0.3581943,85677.0,85676.0,0.69972]
[1765855773287,0.0136743,85677.0,85676.0,0.69972]
[1765855773486,0.3487943,85677.0,85676.0,0.69972]
[1765855773693,0.6934143,85677.0,85676.0,0.69972]
[1765855773999,0.6924143,85677.0,85676.0,0.69972]
[1765855774198,0.6914143,85677.0,85676.0,0.69972]
[1765855774400,0.0116743,85677.0,85676.0,0.69972]
[1765855774694,0.6914143,85677.0,85676.0,0.69972]
[1765855775795,0.6924143,85677.0,85676.0,0.69972]
[1765855778200,0.0126743,85677.0,85676.0,0.69972]
[1765855779201,0.0116743,85677.0,85676.0,0.69972]
[1765855780496,0.6914143,85677.0,85676.0,0.69972]
[1765855781603,0.0116743,85677.0,85676.0,0.69972]
[1765855782703,0.01184855,85683.0,85682.0,0.66428]
[1765855782998,0.3467914,85698.0,85697.0,0.66428]
[1765855783208,0.3467914,85698.0,85697.0,1.75572]
[1765855784194,0.3487914,85698.0,85697.0,1.75572]
[1765855785200,0.0156714,85698.0,85697.0,1.75572]
[1765855785900,0.0116714,85698.0,85697.0,1.75572]
[1765855786103,0.3467914,85698.0,85697.0,1.75572]
[1765855786302,0.6914114,85698.0,85697.0,1.75568]
[1765855786611,0.3491187,85738.0,85737.0,0.66428]
[1765855786905,0.6937387,85738.0,85737.0,1.39488]